Workbook

Sheet ORÇAMENTO
A1: <---- NUMERAR SERVIÇOS PARA CPU | C1: Ministério do Desenvolvimento Regional
C2: Companhia de Desenvolvimento dos Vales do São Francisco e do Parnaíba
C3: 1ª Superintendência Regional
B5: OBRA: | C5: PAVIMENTAÇÃO ASFÁLTICA EM CBUQ - RECAPEAMENTO - AV. OLINDO MIRANDA - ALMENARA / MG
B6: DATA: | C6: SETEMBRO / 2023 | G6: BDI Serviços: | I6: ='BDI SERV'!D31/100 -> 0.2355
B7: PRAZO DE EXECUÇÃO: 120 DIAS | G7: BDI Fornecimento: | I7: ='BDI FORN'!D31/100 -> 0.15
B8: ITEM | C8: DISCRIMINAÇÃO | D8: REFER. | E8: UNID. | F8: QUANT. | G8: P. UNITÁRIO | H8: P.UNIT.C/ BDI | I8: P. TOTAL
A9: A | B9: 1 | C9: SERVIÇOS PRELIMINARES | I9: =SUM(I10:I13) -> 105769.3
A10: 1 | B10: 1.1 | C10: MOBILIZAÇÃO E DESMOBILIZAÇÃO | D10: CPU.1 | E10: GL | F10: 1 | G10: =VLOOKUP(A10,CPU!$A$1:$N$4636,9) -> 7911.72 | H10: =VLOOKUP(A10,CPU!$A$1:$N$4636,10) -> 9774.93 | I10: =ROUND(F10*H10,2) -> 9774.93
A11: 2 | B11: 1.2 | C11: ADMINISTRAÇÃO LOCAL | D11: CPU.2 | E11: GL | F11: 1 | G11: =VLOOKUP(A11,CPU!$A$1:$N$4636,9) -> 66780.52 | H11: =VLOOKUP(A11,CPU!$A$1:$N$4636,10) -> 82507.33 | I11: =ROUND(F11*H11,2) -> 82507.33
A12: 3 | B12: 1.3 | C12: CANTEIRO DE OBRAS | D12: CPU.3 | E12: GL | F12: 1 | G12: =VLOOKUP(A12,CPU!$A$1:$N$4636,9) -> 9384 | H12: =VLOOKUP(A12,CPU!$A$1:$N$4636,10) -> 11593.93 | I12: =ROUND(F12*H12,2) -> 11593.93
A13: 4 | B13: 1.4 | C13: PLACA DE OBRA EM CHAPA DE AÇO GALVANIZADO | D13: 103689 | E13: M2 | F13: 4.5 | G13: =VLOOKUP(A13,CPU!$A$1:$N$4636,9) -> 340.5 | H13: =VLOOKUP(A13,CPU!$A$1:$N$4636,10) -> 420.69 | I13: =ROUND(F13*H13,2) -> 1893.11
A14: B | B14: 2 | C14: PAVIMENTAÇÃO | I14: =SUM(I15:I21) -> 309083.2
A15: 5 | B15: 2.1 | C15: DEMOLIÇÃO PARCIAL DE PAVIMENTO ASFÁLTICO, DE FORMA MECANIZADA, SEM REAPROVEITAMENTO (TRECHOS DE RECOMP. DA BASE) | D15: 97636a | E15: M2 | F15: 1600 | G15: =VLOOKUP(A15,CPU!$A$1:$N$4636,9) -> 16.86 | H15: =VLOOKUP(A15,CPU!$A$1:$N$4636,10) -> 20.83 | I15: =ROUND(F15*H15,2) -> 33328
A16: 6 | B16: 2.2 | C16: ESCAVAÇÃO HORIZONTAL EM SOLO DE 1A CATEGORIA (TRECHOS DE RECOMP. DA BASE) | D16: 101116 | E16: M3 | F16: 330 | G16: =VLOOKUP(A16,CPU!$A$1:$N$4636,9) -> 2.2 | H16: =VLOOKUP(A16,CPU!$A$1:$N$4636,10) -> 2.72 | I16: 897.6
A17: 7 | B17: 2.3 | C17: CARGA, MANOBRA E DESCARGA DE AGREGADOS OU SOLOS EM CAMINHÃO BASCULANTE - DESCARGA LIVRE (TRECHOS DE RECOMP. DA BASE) | D17: 100976 | E17: M3 | F17: 330 | G17: =VLOOKUP(A17,CPU!$A$1:$N$4636,9) -> 8.71 | H17: =VLOOKUP(A17,CPU!$A$1:$N$4636,10) -> 10.76 | I17: 3550.8
A18: 8 | B18: 2.4 | C18: REGULARIZAÇÃO E COMPACTAÇÃO DE SUBLEITO (TRECHOS DE RECOMP. DA BASE) | D18: 100576 | E18: M2 | F18: 1600 | G18: =VLOOKUP(A18,CPU!$A$1:$N$4636,9) -> 2.57 | H18: =VLOOKUP(A18,CPU!$A$1:$N$4636,10) -> 3.18 | I18: 5088
A19: 10 | B19: 2.5 | C19: RECOMPOSIÇÃO DE BASE E OU SUB-BASE PARA REMENDO PROFUNDO DE BICA CORRIDA - INCLUSO RETIRADA E COLOCAÇÃO DO MATERIAL | D19: 101835a | E19: M3 | F19: 330 | G19: =VLOOKUP(A19,CPU!$A$1:$N$4636,9) -> 127.45 | H19: =VLOOKUP(A19,CPU!$A$1:$N$4636,10) -> 157.46 | I19: 51961.8
A20: 11 | B20: 2.2 | C20: PINTURA DE LIGAÇÃO COM EMULSÃO ASFÁLTICA RR-1C | D20: 96402 | E20: M2 | F20: 30500 | G20: =VLOOKUP(A20,CPU!$A$1:$N$4636,9) -> 1.01 | H20: =VLOOKUP(A20,CPU!$A$1:$N$4636,10) -> 1.25 | I20: =ROUND(F20*H20,2) -> 38125
A21: 12 | B21: 2.3 | C21: EXECUÇÃO DE PAVIMENTO COM APLICAÇÃO DE CONCRETO ASFÁLTICO USINADO A QUENTE (CBUQ), CAMADA DE ROLAMENTO - EXCLUSIVE TRANSPORTE | D21: 95995 | E21: M3 | F21: 1100 | G21: =VLOOKUP(A21,CPU!$A$1:$N$4636,9) -> 129.6 | H21: =VLOOKUP(A21,CPU!$A$1:$N$4636,10) -> 160.12 | I21: 176132
A22: C | B22: 3 | C22: TRANSPORTE DE MATERIAIS | I22: =SUM(I23:I23) -> 5850
A23: 13 | B23: 3.1 | C23: TRANSPORTE COM CAMINHÃO BASCULANTE, EM VIA URBANA PAVIMENTADA | D23: 95427 | E23: M3XKM | F23: 6499.99578 | G23: =VLOOKUP(A23,CPU!$A$1:$N$4636,9) -> 0.73 | H23: =VLOOKUP(A23,CPU!$A$1:$N$4636,10) -> 0.9 | I23: =ROUND(F23*H23,2) -> 5850
A24: D | B24: 4 | C24: TRANSPORTE DE MATERIAL ASFÁLTICO (BDI DIFERENCIADO) | I24: =SUM(I25:I26) -> 409000
A25: 15 | B25: 4.1 | C25: TRANSPORTE DE MASSA ASFÁLTICA COM CAMINHÃO BASCULANTE, EM VIA URBANA PAVIMENTADA (BDI DIFERENCIADO) | D25: 95430 | E25: TXKM | F25: 775000 | G25: =VLOOKUP(A25,CPU!$A$1:$N$4636,9) -> 0.45 | H25: =VLOOKUP(A25,CPU!$A$1:$N$4636,10) -> 0.52 | I25: =ROUND(F25*H25,2) -> 403000
A26: 16 | B26: 4.2 | C26: TRANSPORTE COM CAMINHÃO TANQUE DE TRANSPORTE DE MATERIAL ASFÁLTICO DE 30000 L, EM VIA URBANA PAVIMENTADA (BDI DIFERENCIADO) | D26: 102331 | E26: TXKM | F26: 10000 | G26: =VLOOKUP(A26,CPU!$A$1:$N$4636,9) -> 0.52 | H26: =VLOOKUP(A26,CPU!$A$1:$N$4636,10) -> 0.6 | I26: =ROUND(F26*H26,2) -> 6000
A27: E | B27: 5 | C27: DRENAGEM E OBRAS COMPLEMENTARES | I27: =SUM(I28:I32) -> 390947.57
A28: 19 | B28: 5.1 | C28: DEMOLIÇÃO DE PAVIMENTAÇÃO ASFÁLTICA COM UTILIZAÇÃO DE MARTELO PERFURADOR (TRECHO DE SARJETA EXISTENTE) | D28: 92970a | E28: M2 | F28: 1440 | G28: =VLOOKUP(A28,CPU!$A$1:$N$4636,9) -> 19.49 | H28: =VLOOKUP(A28,CPU!$A$1:$N$4636,10) -> 24.08 | I28: =ROUND(F28*H28,2) -> 34675.2
A29: 20 | B29: 5.2 | C29: EXECUÇÃO DE SARJETA DE CONCRETO USINADO, MOLDADA IN LOCO EM TRECHO RETO, 40 CM BASE X 7 CM ALTURA | D29: 94273a | E29: M | F29: 3650 | G29: =VLOOKUP(A29,CPU!$A$1:$N$4636,9) -> 41.98 | H29: =VLOOKUP(A29,CPU!$A$1:$N$4636,10) -> 51.86629 | I29: 189311.96
A30: 21 | B30: 5.3 | C30: PINTURA DE EIXO VIÁRIO SOBRE ASFALTO COM TINTA RETRORREFLETIVA A BASE DE RESINA ACRÍLICA COM MICROESFERAS DE VIDRO, APLICAÇÃO MECÂNICA COM DEMARCADORA AUTOPROPELIDA | D30: 102512 | E30: M | F30: 12000 | G30: =VLOOKUP(A30,CPU!$A$1:$N$4636,9) -> 5.84 | H30: =VLOOKUP(A30,CPU!$A$1:$N$4636,10) -> 7.22 | I30: 86640
A31: 22 | B31: 5.4 | C31: PINTURA DE FAIXA DE PEDESTRE OU ZEBRADA TINTA RETRORREFLETIVA A BASE DE RESINA ACRÍLICA COM MICROESFERAS DE VIDRO, E = 30 CM, APLICAÇÃO MANUAL | D31: 102509 | E31: M2 | F31: 1400 | G31: =VLOOKUP(A31,CPU!$A$1:$N$4636,9) -> 25.52 | H31: =VLOOKUP(A31,CPU!$A$1:$N$4636,10) -> 31.53 | I31: =ROUND(F31*H31,2) -> 44142
A32: 23 | B32: 5.5 | C32: FORNECIMENTO E INSTALAÇÃO DE PLACA DE SINALIZAÇÃO VIÁRIA - REGULAMENTAÇÃO (FAIXA DE PEDESTRE E OUTROS) - CONFORME PROJETO | D32: CPU.4 | E32: UNID | F32: 60 | G32: =VLOOKUP(A32,CPU!$A$1:$N$4636,9) -> 488.04 | H32: =VLOOKUP(A32,CPU!$A$1:$N$4636,10) -> 602.97342 | I32: 36178.41
A33: F | B33: 6 | C33: FORNECIMENTOS - MATERIAL ASFÁLTICO (BDI DIFERENCIADO) | I33: =SUM(I34:I35) -> 1859642.38
A34: 26 | B34: 6.1 | C34: AQUISIÇÃO DE EMULSAO ASFALTICA CATIONICA RR-1C - EXCLUSIVE TRANSPORTE | D34: CPU.6 | E34: T | F34: 13.995 | G34: =VLOOKUP(A34,CPU!$A$1:$N$4636,9) -> 2706.7 | H34: =VLOOKUP(A34,CPU!$A$1:$N$4636,10) -> 3112.71 | I34: =ROUND(F34*H34,2) -> 43562.38
A35: 27 | B35: 6.2 | C35: AQUISIÇÃO DE CONCRETO BETUMINOSO USINADO A QUENTE (CBUQ) PARA PAVIMENTACAO ASFALTICA, PADRAO DNIT, FAIXA C, COM CAP 50/70 - EXCLUSIVE TRANSPORTE | D35: CPU.7 | E35: T | F35: 2820 | G35: =VLOOKUP(A35,CPU!$A$1:$N$4636,9) -> 560 | H35: =VLOOKUP(A35,CPU!$A$1:$N$4636,10) -> 644 | I35: =ROUND(F35*H35,2) -> 1816080
B36: TOTAL GERAL DA OBRA COM BDI | I36: =SUM(I9,I14,I22,I27,I33,I24) -> 3080292.45

Sheet CPU
A1: 1 | B1: CODEVASF | E1: COMPOSIÇÃO DE PREÇO UNITÁRIO | I1: =H11 -> 7911.72 | J1: =H13 -> 9774.93 | K1: BDI CALCULADO: | M1: =ORÇAMENTO!I6 -> 0.2355
B2: OBRA: | C2: =ORÇAMENTO!C5 -> PAVIMENTAÇÃO ASFÁLTICA EM CBUQ - RECAPEAMENTO - AV. OLINDO MIRANDA - ALMENARA / MG | G2: DATA: | H2: =ORÇAMENTO!C6 -> SETEMBRO / 2023 | K2: BDI DIFERENCIADO: | M2: ='BDI FORN'!D31/100 -> 0.15
B3: SERVIÇO: | C3: =VLOOKUP(A1,ORÇAMENTO!A10:I27,3) -> MOBILIZAÇÃO E DESMOBILIZAÇÃO | E3: Referência: | F3: =VLOOKUP(A1,ORÇAMENTO!$A$10:$I$27,4) -> CPU.1 | G3: UNIDADE: | H3: =VLOOKUP(A1,ORÇAMENTO!A10:I27,5) -> GL
B5: TIPO ITEM | C5: CODIGO ITEM | D5: DESCRIÇÃO ITEM | E5: UNIDADE ITEM | F5: COEFICIENTE | G5: PRECO UNITARIO | H5: CUSTO TOTAL
B6: COMPOSICAO | C6: 89876 | D6: CAMINHÃO BASCULANTE 14 M3, COM CAVALO MECÂNICO DE CAPACIDADE MÁXIMA DE TRAÇÃO COMBINADO DE 36000 KG, POTÊNCIA 286 CV, INCLUSIVE SEMIREBOQUE COM CAÇAMBA METÁLICA | E6: CHP DIURNO. | F6: 8 | G6: 316.13 | H6: =ROUNDDOWN(F6*G6,2) -> 2529.04
B7: COMPOSICAO | C7: 89877 | D7: CAMINHÃO BASCULANTE 14 M3, COM CAVALO MECÂNICO DE CAPACIDADE MÁXIMA DE TRAÇÃO COMBINADO DE 36000 KG, POTÊNCIA 286 CV, INCLUSIVE SEMIREBOQUE COM CAÇAMBA METÁLICA | E7: CHI DIURNO. | F7: 8 | G7: 89.75 | H7: =ROUNDDOWN(F7*G7,2) -> 718
B8: COMPOSICAO | C8: 5914640 | D8: TRANSPORTE COM CAVALO MECÂNICO COM SEMIRREBOQUE COM CAPACIDADE DE 30 T - RODOVIA PAVIMENTADA | E8: T.KM | F8: 677 | G8: 0.58 | H8: =ROUNDDOWN(F8*G8,2) -> 392.66
B9: COMPOSIÇÃO | C9: 88316 | D9: SERVENTE COM ENCARGOS COMPLEMENTARES | E9: H | F9: 16 | G9: 19.76 | H9: =ROUNDDOWN(F9*G9,2) -> 316.16
B10: PRODUÇÃO DA EQUIPE | E10: 0.5 | F10: CUSTO | H10: =SUM(H6:H9) -> 3955.86
B11: TOTAL | H11: =H10/E10 -> 7911.72 | I11: OK
B12: BDI % | H12: =1+$M$1 -> 1.2355
B13: TOTAL DO SERVIÇO - R$ | H13: =ROUND(H11*H12,2) -> 9774.93
A15: =A1+1 -> 2 | B15: CODEVASF | E15: COMPOSIÇÃO DE PREÇO UNITÁRIO | I15: =H31 -> 66780.52 | J15: =H33 -> 82507.33
B16: OBRA: | C16: =$C$2 -> PAVIMENTAÇÃO ASFÁLTICA EM CBUQ - RECAPEAMENTO - AV. OLINDO MIRANDA - ALMENARA / MG | G16: DATA: | H16: =$H$2 -> SETEMBRO / 2023
B17: SERVIÇO: | C17: =VLOOKUP(A15,ORÇAMENTO!$A$10:$I$27,3) -> ADMINISTRAÇÃO LOCAL | E17: SINAPI | F17: =VLOOKUP(A15,ORÇAMENTO!$A$10:$I$27,4) -> CPU.2 | G17: UNIDADE: | H17: =VLOOKUP(A15,ORÇAMENTO!$A$10:$I$27,5) -> GL
B19: TIPO ITEM | C19: CODIGO ITEM | D19: DESCRIÇÃO ITEM | E19: UNIDADE ITEM | F19: COEFICIENTE | G19: PRECO UNITARIO | H19: CUSTO TOTAL
B20: INSUMO | C20: 14250 | D20: ENERGIA ELÉTRICA | E20: kwh | F20: 60 | G20: 0.94 | H20: =ROUNDDOWN(F20*G20,2) -> 56.4
B21: INSUMO | C21: 44480 | D21: TARIFA "A" - ÁGUA/ESGOTO | E21: m³ | F21: 6 | G21: 17.78 | H21: 106.68
B22: COTAÇÃO | C22: MERC. | D22: TELEFONE (PLANO CONTROLE) | E22: UNID | F22: 2 | G22: 59.9 | H22: 119.8
B23: INSUMO | C23: ED-50155 SEINFRA | D23: BANHEIRO QUÍMICO 110 X 120 X 230 CM COM MANUTENÇÃO (CONSIDERANDO OBRAS SIMULTÂNEAS) | E23: MÊS | F23: 1 | G23: 820 | H23: 820
B24: COMPOSICAO | C24: 90777 | D24: Engenheiro Civil Júnior com encargos complementares | E24: H | F24: 45 | G24: 114.12 | H24: 5135.4
B25: COMPOSICAO | C25: 90776 | D25: Encarregado Geral com encargos complementares | E25: H | F25: 90 | G25: 57.73 | H25: 5195.7
B26: COMPOSICAO | C26: 88321 | D26: Tecnico de Laboratório com encargos complementares | E26: H | F26: 55 | G26: 45.45 | H26: 2499.75
B27: COMPOSICAO | C27: 88253 | D27: AUXILIAR DE TOPÓGRAFO COM ENCARGOS COMPLEMENTARES | E27: H | F27: 30 | G27: 21.57 | H27: 647.1
B28: COMPOSICAO | C28: 88288 | D28: NIVELADOR COM ENCARGOS COMPLEMENTARES | E28: H | F28: 30 | G28: 26.99 | H28: 809.7
B29: COMPOSICAO | C29: 90772 | D29: Auxiliar de escritório com encargos complementares | E29: H | F29: 55 | G29: 23.72 | H29: 1304.6
B30: PRODUÇÃO DA EQUIPE | E30: =1/4 -> 0.25 | F30: CUSTO | H30: =SUM(H20:H29) -> 16695.13
B31: TOTAL | H31: =ROUND(H30/E30,2) -> 66780.52 | I31: OK
B32: BDI % | H32: =1+$M$1 -> 1.2355
B33: TOTAL DO SERVIÇO - R$ | H33: =ROUND(H31*H32,2) -> 82507.33
A35: =A15+1 -> 3 | B35: CODEVASF | E35: COMPOSIÇÃO DE PREÇO UNITÁRIO | I35: =H45 -> 9384 | J35: =H47 -> 11593.93
B36: OBRA: | C36: =$C$2 -> PAVIMENTAÇÃO ASFÁLTICA EM CBUQ - RECAPEAMENTO - AV. OLINDO MIRANDA - ALMENARA / MG | G36: DATA: | H36: =$H$2 -> SETEMBRO / 2023
B37: SERVIÇO: | C37: =VLOOKUP(A35,ORÇAMENTO!$A$10:$I$27,3) -> CANTEIRO DE OBRAS | E37: SINAPI | F37: =VLOOKUP(A35,ORÇAMENTO!$A$10:$I$27,4) -> CPU.3 | G37: UNIDADE: | H37: =VLOOKUP(A35,ORÇAMENTO!$A$10:$I$27,5) -> GL
B39: TIPO ITEM | C39: CODIGO ITEM | D39: DESCRIÇÃO ITEM | E39: UNIDADE ITEM | F39: COEFICIENTE | G39: PRECO UNITARIO | H39: CUSTO TOTAL
B40: INSUMO | C40: 10775 | D40: LOCACAO DE CONTAINER 2,30 X 6,00 M, ALT. 2,50 M, COM 1 SANITARIO, PARA ESCRITORIO, COMPLETO, SEM DIVISORIAS INTERNAS | E40: MÊS | F40: 4 | G40: 975 | H40: =ROUNDDOWN(F40*G40,2) -> 3900
B41: INSUMO | C41: 10779 | D41: LOCACAO DE CONTAINER 2,30 X 4,30 M, ALT. 2,50 M, P/ SANITARIO, C/ 5 BACIAS, 1 LAVATORIO E 4 MICTORIOS | E41: MÊS | F41: 4 | G41: 1218.75 | H41: =ROUNDDOWN(F41*G41,2) -> 4875
B42: INSUMO | C42: 37525 | D42: TELA PLASTICA TECIDA LISTRADA BRANCA E LARANJA, TIPO GUARDA CORPO, EM POLIETILENO MONOFILADO, ROLO 1,20 X 50 M (L X C) | E42: M | F42: 100 | G42: 3.69 | H42: =ROUNDDOWN(F42*G42,2) -> 369
B43: COMPOSICAO | C43: - | D43: PLACA DE SINALIZAÇÃO - "PERIGO - OBRAS A FRENTE" - FORNECIMENTO E MOVIMENTAÇÃO | E43: UNID. | F43: 12 | G43: 20 | H43: =ROUNDDOWN(F43*G43,2) -> 240
B44: PRODUÇÃO DA EQUIPE | E44: 1 | F44: CUSTO | H44: =SUM(H40:H43) -> 9384
B45: TOTAL | H45: =H44/E44 -> 9384 | I45: OK
B46: BDI % | H46: =1+$M$1 -> 1.2355
B47: TOTAL DO SERVIÇO - R$ | H47: =ROUND(H45*H46,2) -> 11593.93
A49: =A35+1 -> 4 | B49: CODEVASF | E49: COMPOSIÇÃO DE PREÇO UNITÁRIO | I49: =H63 -> 340.5 | J49: =H65 -> 420.69
B50: OBRA: | C50: =$C$2 -> PAVIMENTAÇÃO ASFÁLTICA EM CBUQ - RECAPEAMENTO - AV. OLINDO MIRANDA - ALMENARA / MG | G50: DATA: | H50: =$H$2 -> SETEMBRO / 2023
B51: SERVIÇO: | C51: =VLOOKUP(A49,ORÇAMENTO!$A$10:$I$27,3) -> PLACA DE OBRA EM CHAPA DE AÇO GALVANIZADO | E51: SINAPI | F51: =VLOOKUP(A49,ORÇAMENTO!$A$10:$I$27,4) -> 103689 | G51: UNIDADE: | H51: =VLOOKUP(A49,ORÇAMENTO!$A$10:$I$27,5) -> M2
B53: TIPO ITEM | C53: CODIGO ITEM | D53: DESCRIÇÃO ITEM | E53: UNIDADE ITEM | F53: COEFICIENTE | G53: PRECO UNITARIO | H53: CUSTO TOTAL
B54: INSUMO | C54: 4509 | D54: SARRAFO *2,5 X 10* CM EM PINUS, MISTA OU EQUIVALENTE DA REGIAO - BRUTA | E54: M | F54: 3,2083000 | G54: 4,41 | H54: =ROUNDDOWN(F54*G54,2) -> 14.14
B55: INSUMO | C55: 4813 | D55: PLACA DE OBRA (PARA CONSTRUCAO CIVIL) EM CHAPA GALVANIZADA *N. 22*, ADESIVADA, DE *2,4 X 1,2* M (SEM POSTES PARA FIXACAO) | E55: M2 | F55: 1,0000000 | G55: 250,00 | H55: 250
B56: INSUMO | C56: 5065 | D56: PREGO DE ACO POLIDO COM CABECA 10 X 10 (7/8 X 17) | E56: KG | F56: 0,0113000 | G56: 36,57 | H56: 0.41
B57: INSUMO | C57: 5069 | D57: PREGO DE ACO POLIDO COM CABECA 17 X 27 (2 1/2 X 11) | E57: KG | F57: 0,0132000 | G57: 19,59 | H57: 0.25
B58: COMPOSICAO | C58: 88262 | D58: CARPINTEIRO DE FORMAS COM ENCARGOS COMPLEMENTARES | E58: H | F58: 0,3729000 | G58: 27,05 | H58: 10.08
B59: COMPOSICAO | C59: 88316 | D59: SERVENTE COM ENCARGOS COMPLEMENTARES | E59: H | F59: 1,1186000 | G59: 19,76 | H59: 22.1
B60: INSUMO | C60: 4115 | D60: MADEIRA ROLICA TRATADA, D = 12 A 15 CM, H = 3,00 M, EM EUCALIPTO OU EQUIVALENTE | E60: M | F60: 2 | G60: 21.76 | H60: 43.52
H61: 0
B62: PRODUÇÃO DA EQUIPE | E62: 1 | F62: CUSTO | H62: =SUM(H54:H61) -> 340.5
B63: TOTAL | H63: =H62/E62 -> 340.5 | I63: OK
B64: BDI % | H64: =1+$M$1 -> 1.2355
B65: TOTAL DO SERVIÇO - R$ | H65: =ROUND(H63*H64,2) -> 420.69
A67: 5 | B67: CODEVASF | E67: COMPOSIÇÃO DE PREÇO UNITÁRIO | I67: =H79 -> 16.86 | J67: =H81 -> 20.83
B68: OBRA: | C68: =$C$2 -> PAVIMENTAÇÃO ASFÁLTICA EM CBUQ - RECAPEAMENTO - AV. OLINDO MIRANDA - ALMENARA / MG | G68: DATA: | H68: =$H$2 -> SETEMBRO / 2023
B69: SERVIÇO: | C69: =VLOOKUP(A67,ORÇAMENTO!$A$10:$I$40,3) -> DEMOLIÇÃO PARCIAL DE PAVIMENTO ASFÁLTICO, DE FORMA MECANIZADA, SEM REAPROVEITAMENTO (TRECHOS DE RECOMP. DA BASE) | E69: SINAPI | F69: =VLOOKUP(A67,ORÇAMENTO!$A$10:$I$40,4) -> 97636a | G69: UNIDADE: | H69: =VLOOKUP(A67,ORÇAMENTO!$A$10:$I$40,5) -> M2
B71: TIPO ITEM | C71: CODIGO ITEM | D71: DESCRIÇÃO ITEM | E71: UNIDADE ITEM | F71: COEFICIENTE | G71: PRECO UNITARIO | H71: CUSTO TOTAL
B72: COMPOSICAO | C72: 5678 | D72: RETROESCAVADEIRA SOBRE RODAS COM CARREGADEIRA, TRAÇÃO 4X4, POTÊNCIA LÍQ. 88 HP, CAÇAMBA CARREG. CAP. MÍN. 1 M3, CAÇAMBA RETRO CAP. 0,26 M3, PESO OPERACIONAL MÍN. 6.674 KG, PROFUNDIDADE ESCAVAÇÃO MÁX. 4,37 M - CHP DIURNO. | E72: CHP | F72: 0,0326000 | G72: 155.17 | H72: =ROUNDDOWN(F72*G72,2) -> 5.05
B73: COMPOSICAO | C73: 5679 | D73: RETROESCAVADEIRA SOBRE RODAS COM CARREGADEIRA, TRAÇÃO 4X4, POTÊNCIA LÍQ. 88 HP, CAÇAMBA CARREG. CAP. MÍN. 1 M3, CAÇAMBA RETRO CAP. 0,26 M3, PESO OPERACIONAL MÍN. 6.674 KG, PROFUNDIDADE ESCAVAÇÃO MÁX. 4,37 M - CHI DIURNO. | E73: CHI | F73: 0,0896000 | G73: 74.35 | H73: 6.66
B74: COMPOSICAO | C74: 88297 | D74: OPERADOR DE MÁQUINAS E EQUIPAMENTOS COM ENCARGOS COMPLEMENTARES | E74: H | F74: 0,1360000 | G74: 33,72 | H74: 4.58
B75: COMPOSICAO | C75: 91283 | D75: CORTADORA DE PISO COM MOTOR 4 TEMPOS A GASOLINA, POTÊNCIA DE 13 HP, COM DISCO DE CORTE DIAMANTADO SEGMENTADO PARA CONCRETO, DIÂMETRO DE 350 MM, FURO DE 1" (14 X 1") - CHP DIURNO | E75: CHP | F75: 0,0524000 | G75: 9,69 | H75: 0.5
B76: COMPOSICAO | C76: 91285 | D76: CORTADORA DE PISO COM MOTOR 4 TEMPOS A GASOLINA, POTÊNCIA DE 13 HP, COM DISCO DE CORTE DIAMANTADO SEGMENTADO PARA CONCRETO, DIÂMETRO DE 350 MM, FURO DE 1" (14 X 1") - CHI DIURNO | E76: CHI | F76: 0,0836000 | G76: 0,92 | H76: 0.07
H77: 0
B78: PRODUÇÃO DA EQUIPE | E78: 1 | F78: CUSTO | H78: =SUM(H72:H77) -> 16.86
B79: TOTAL | H79: =H78/E78 -> 16.86
B80: BDI % | H80: =1+$M$1 -> 1.2355
B81: TOTAL DO SERVIÇO - R$ | H81: =ROUND(H79*H80,2) -> 20.83
A83: 6 | B83: CODEVASF | E83: COMPOSIÇÃO DE PREÇO UNITÁRIO | I83: =H92 -> 2.2 | J83: =H94 -> 2.72
B84: OBRA: | C84: =$C$2 -> PAVIMENTAÇÃO ASFÁLTICA EM CBUQ - RECAPEAMENTO - AV. OLINDO MIRANDA - ALMENARA / MG | G84: DATA: | H84: =$H$2 -> SETEMBRO / 2023
B85: SERVIÇO: | C85: =VLOOKUP(A83,ORÇAMENTO!$A$10:$I$40,3) -> ESCAVAÇÃO HORIZONTAL EM SOLO DE 1A CATEGORIA (TRECHOS DE RECOMP. DA BASE) | E85: SINAPI | F85: =VLOOKUP(A83,ORÇAMENTO!$A$10:$I$40,4) -> 101116 | G85: UNIDADE: | H85: =VLOOKUP(A83,ORÇAMENTO!$A$10:$I$40,5) -> M3
B87: TIPO ITEM | C87: CODIGO ITEM | D87: DESCRIÇÃO ITEM | E87: UNIDADE ITEM | F87: COEFICIENTE | G87: PRECO UNITARIO | H87: CUSTO TOTAL
B88: COMPOSICAO | C88: 5847 | D88: TRATOR DE ESTEIRAS, POTÊNCIA 170 HP, PESO OPERACIONAL 19 T, CAÇAMBA 5,2 M3 | E88: CHP | F88: 0,0048000 | G88: 253,93 | H88: =ROUNDDOWN(F88*G88,2) -> 1.21
B89: COMPOSICAO | C89: 5849 | D89: TRATOR DE ESTEIRAS, POTÊNCIA 170 HP, PESO OPERACIONAL 19 T, CAÇAMBA 5,2 M3 | E89: CHI | F89: 0,0082000 | G89: 90,40 | H89: =ROUNDDOWN(F89*G89,2) -> 0.74
B90: COMPOSICAO | C90: 88316 | D90: SERVENTE COM ENCARGOS COMPLEMENTARES | E90: H | F90: 0,0131000 | G90: 19,76 | H90: =ROUNDDOWN(F90*G90,2) -> 0.25
B91: PRODUÇÃO DA EQUIPE | E91: 1 | F91: CUSTO | H91: =SUM(H88:H90) -> 2.2
B92: TOTAL | H92: =H91/E91 -> 2.2
B93: BDI % | H93: =1+$M$1 -> 1.2355
B94: TOTAL DO SERVIÇO - R$ | H94: =ROUND(H92*H93,2) -> 2.72
A96: 7 | B96: CODEVASF | E96: COMPOSIÇÃO DE PREÇO UNITÁRIO | I96: =H106 -> 8.71 | J96: =H108 -> 10.76
B97: OBRA: | C97: =$C$2 -> PAVIMENTAÇÃO ASFÁLTICA EM CBUQ - RECAPEAMENTO - AV. OLINDO MIRANDA - ALMENARA / MG | G97: DATA: | H97: =$H$2 -> SETEMBRO / 2023
B98: SERVIÇO: | C98: =VLOOKUP(A96,ORÇAMENTO!$A$10:$I$40,3) -> CARGA, MANOBRA E DESCARGA DE AGREGADOS OU SOLOS EM CAMINHÃO BASCULANTE - DESCARGA LIVRE (TRECHOS DE RECOMP. DA BASE) | E98: SINAPI | F98: =VLOOKUP(A96,ORÇAMENTO!$A$10:$I$40,4) -> 100976 | G98: UNIDADE: | H98: =VLOOKUP(A96,ORÇAMENTO!$A$10:$I$40,5) -> M3
B100: TIPO ITEM | C100: CODIGO ITEM | D100: DESCRIÇÃO ITEM | E100: UNIDADE ITEM | F100: COEFICIENTE | G100: PRECO UNITARIO | H100: CUSTO TOTAL
B101: COMPOSICAO | C101: 5940 | D101: PÁ CARREGADEIRA SOBRE RODAS, POTÊNCIA LÍQUIDA 128 HP, CAPACIDADE DA CAÇAMBA 1,7 A 2,8 M3, PESO OPERACIONAL 11632 KG | E101: CHP | F101: 0,0083000 | G101: 217,72 | H101: =ROUNDDOWN(F101*G101,2) -> 1.8
B102: COMPOSICAO | C102: 5942 | D102: PÁ CARREGADEIRA SOBRE RODAS, POTÊNCIA LÍQUIDA 128 HP, CAPACIDADE DA CAÇAMBA 1,7 A 2,8 M3, PESO OPERACIONAL 11632 KG | E102: CHI | F102: 0,0074000 | G102: 95,85 | H102: =ROUNDDOWN(F102*G102,2) -> 0.7
B103: COMPOSICAO | C103: 89883 | D103: CAMINHÃO BASCULANTE 18 M3, COM CAVALO MECÂNICO DE CAPACIDADE MÁXIMA DE TRAÇÃO COMBINADO DE 45000 KG, POTÊNCIA 330 CV, INCLUSIVE SEMIREBOQUE COM CAÇAMBA METÁLICA | E103: CHP | F103: 0,0153000 | G103: 348,45 | H103: =ROUNDDOWN(F103*G103,2) -> 5.33
B104: COMPOSICAO | C104: 89884 | D104: CAMINHÃO BASCULANTE 18 M3, COM CAVALO MECÂNICO DE CAPACIDADE MÁXIMA DE TRAÇÃO COMBINADO DE 45000 KG, POTÊNCIA 330 CV, INCLUSIVE SEMIREBOQUE COM CAÇAMBA METÁLICA | E104: CHI | F104: 0,0095000 | G104: 93,65 | H104: =ROUNDDOWN(F104*G104,2) -> 0.88
B105: PRODUÇÃO DA EQUIPE | E105: 1 | F105: CUSTO | H105: =SUM(H101:H104) -> 8.71
B106: TOTAL | H106: =H105/E105 -> 8.71
B107: BDI % | H107: =1+$M$1 -> 1.2355
B108: TOTAL DO SERVIÇO - R$ | H108: =ROUND(H106*H107,2) -> 10.76
A110: 8 | B110: CODEVASF | E110: COMPOSIÇÃO DE PREÇO UNITÁRIO | I110: =H124 -> 2.57 | J110: =H126 -> 3.18
B111: OBRA: | C111: =$C$2 -> PAVIMENTAÇÃO ASFÁLTICA EM CBUQ - RECAPEAMENTO - AV. OLINDO MIRANDA - ALMENARA / MG | G111: DATA: | H111: =$H$2 -> SETEMBRO / 2023
B112: SERVIÇO: | C112: =VLOOKUP(A110,ORÇAMENTO!$A$10:$I$40,3) -> REGULARIZAÇÃO E COMPACTAÇÃO DE SUBLEITO (TRECHOS DE RECOMP. DA BASE) | E112: SINAPI | F112: =VLOOKUP(A110,ORÇAMENTO!$A$10:$I$40,4) -> 100576 | G112: UNIDADE: | H112: =VLOOKUP(A110,ORÇAMENTO!$A$10:$I$40,5) -> M2
B114: TIPO ITEM | C114: CODIGO ITEM | D114: DESCRIÇÃO ITEM | E114: UNIDADE ITEM | F114: COEFICIENTE | G114: PRECO UNITARIO | H114: CUSTO TOTAL
B115: COMPOSICAO | C115: 5901 | D115: CAMINHÃO PIPA 10.000 L TRUCADO, PESO BRUTO TOTAL 23.000 KG, CARGA ÚTIL MÁXIMA 15.935 KG, DISTÂNCIA ENTRE EIXOS 4,8 M, POTÊNCIA 230 CV, INCLUSIVE TANQUE DE AÇO PARA TRANSPORTE DE ÁGUA | E115: CHP | F115: 0,0010000 | G115: 294,94 | H115: =ROUNDDOWN(F115*G115,2) -> 0.29
B116: COMPOSICAO | C116: 5903 | D116: CAMINHÃO PIPA 10.000 L TRUCADO, PESO BRUTO TOTAL 23.000 KG, CARGA ÚTIL MÁXIMA 15.935 KG, DISTÂNCIA ENTRE EIXOS 4,8 M, POTÊNCIA 230 CV, INCLUSIVE TANQUE DE AÇO PARA TRANSPORTE DE ÁGUA | E116: CHI | F116: 0,0070000 | G116: 72,55 | H116: 0.5
B117: COMPOSICAO | C117: 5932 | D117: MOTONIVELADORA POTÊNCIA BÁSICA LÍQUIDA (PRIMEIRA MARCHA) 125 HP, PESO BRUTO 13032 KG, LARGURA DA LÂMINA DE 3,7 M | E117: CHP | F117: 0,0001000 | G117: 262,71 | H117: 0.02
B118: COMPOSICAO | C118: 5934 | D118: MOTONIVELADORA POTÊNCIA BÁSICA LÍQUIDA (PRIMEIRA MARCHA) 125 HP, PESO BRUTO 13032 KG, LARGURA DA LÂMINA DE 3,7 M | E118: CHI | F118: 0,0080000 | G118: 109,40 | H118: 0.87
B119: COMPOSICAO | C119: 73436 | D119: ROLO COMPACTADOR VIBRATÓRIO PÉ DE CARNEIRO PARA SOLOS, POTÊNCIA 80 HP, PESO OPERACIONAL SEM/COM LASTRO 7,4 / 8,8 T, LARGURA DE TRABALHO 1,68 M | E119: CHP | F119: 0,0020000 | G119: 163,19 | H119: 0.32
B120: COMPOSICAO | C120: 88316 | D120: SERVENTE COM ENCARGOS COMPLEMENTARES | E120: H | F120: 0,0080000 | G120: 19,76 | H120: 0.15
B121: COMPOSICAO | C121: 93244 | D121: ROLO COMPACTADOR VIBRATÓRIO PÉ DE CARNEIRO PARA SOLOS, POTÊNCIA 80 HP, PESO OPERACIONAL SEM/COM LASTRO 7,4 / 8,8 T, LARGURA DE TRABALHO 1,68 M | E121: CHI | F121: 0,0060000 | G121: 71,18 | H121: 0.42
B123: PRODUÇÃO DA EQUIPE | E123: 1 | F123: CUSTO | H123: =SUM(H115:H122) -> 2.57
B124: TOTAL | H124: =H123/E123 -> 2.57
B125: BDI % | H125: =1+$M$1 -> 1.2355
B126: TOTAL DO SERVIÇO - R$ | H126: =ROUND(H124*H125,2) -> 3.18
A128: 10 | B128: CODEVASF | E128: COMPOSIÇÃO DE PREÇO UNITÁRIO | I128: =H146 -> 127.45 | J128: =H148 -> 157.46
B129: OBRA: | C129: =$C$2 -> PAVIMENTAÇÃO ASFÁLTICA EM CBUQ - RECAPEAMENTO - AV. OLINDO MIRANDA - ALMENARA / MG | G129: DATA: | H129: =$H$2 -> SETEMBRO / 2023
B130: SERVIÇO: | C130: =VLOOKUP(A128,ORÇAMENTO!$A$10:$I$27,3) -> RECOMPOSIÇÃO DE BASE E OU SUB-BASE PARA REMENDO PROFUNDO DE BICA CORRIDA - INCLUSO RETIRADA E COLOCAÇÃO DO MATERIAL | E130: SINAPI | F130: =VLOOKUP(A128,ORÇAMENTO!$A$10:$I$27,4) -> 101835a | G130: UNIDADE: | H130: =VLOOKUP(A128,ORÇAMENTO!$A$10:$I$27,5) -> M3
B132: TIPO ITEM | C132: CODIGO ITEM | D132: DESCRIÇÃO ITEM | E132: UNIDADE ITEM | F132: COEFICIENTE | G132: PRECO UNITARIO | H132: CUSTO TOTAL
B133: COMPOSICAO | C133: 5684 | D133: ROLO COMPACTADOR VIBRATÓRIO DE UM CILINDRO AÇO LISO, POTÊNCIA 80 HP, PESO OPERACIONAL MÁXIMO 8,1 T, IMPACTO DINÂMICO 16,15 / 9,5 T, LARGURA DE TRABALHO 1,68 M | E133: CHP | F133: 0,0030000 | G133: 159,98 | H133: =ROUNDDOWN(F133*G133,2) -> 0.47
B134: COMPOSICAO | C134: 5685 | D134: ROLO COMPACTADOR VIBRATÓRIO DE UM CILINDRO AÇO LISO, POTÊNCIA 80 HP, PESO OPERACIONAL MÁXIMO 8,1 T, IMPACTO DINÂMICO 16,15 / 9,5 T, LARGURA DE TRABALHO 1,68 M | E134: CHI | F134: 0,0230000 | G134: 69,53 | H134: 1.59
B135: COMPOSICAO | C135: 5901 | D135: CAMINHÃO PIPA 10.000 L TRUCADO, PESO BRUTO TOTAL 23.000 KG, CARGA ÚTIL MÁXIMA 15.935 KG, DISTÂNCIA ENTRE EIXOS 4,8 M, POTÊNCIA 230 CV, INCLUSIVE TANQUE DE AÇO PARA TRANSPORTE DE ÁGUA | E135: CHP | F135: 0,0040000 | G135: 294,94 | H135: 1.17
B136: COMPOSICAO | C136: 5903 | D136: CAMINHÃO PIPA 10.000 L TRUCADO, PESO BRUTO TOTAL 23.000 KG, CARGA ÚTIL MÁXIMA 15.935 KG, DISTÂNCIA ENTRE EIXOS 4,8 M, POTÊNCIA 230 CV, INCLUSIVE TANQUE DE AÇO PARA TRANSPORTE DE ÁGUA | E136: CHI | F136: 0,0220000 | G136: 72,55 | H136: 1.59
B137: COMPOSICAO | C137: 5932 | D137: MOTONIVELADORA POTÊNCIA BÁSICA LÍQUIDA (PRIMEIRA MARCHA) 125 HP, PESO BRUTO 13032 KG, LARGURA DA LÂMINA DE 3,7 M | E137: CHP | F137: 0,0080000 | G137: 262,71 | H137: 2.1
B138: COMPOSICAO | C138: 5934 | D138: MOTONIVELADORA POTÊNCIA BÁSICA LÍQUIDA (PRIMEIRA MARCHA) 125 HP, PESO BRUTO 13032 KG, LARGURA DA LÂMINA DE 3,7 M | E138: CHI | F138: 0,0190000 | G138: 109,40 | H138: 2.07
B139: COMPOSICAO | C139: 88316 | D139: SERVENTE COM ENCARGOS COMPLEMENTARES | E139: H | F139: 0,0260000 | G139: 19,76 | H139: 0.51
B140: COMPOSICAO | C140: 96463 | D140: ROLO COMPACTADOR DE PNEUS, ESTATICO, PRESSAO VARIAVEL, POTENCIA 110 HP, PESO SEM/COM LASTRO 10,8/27 T, LARGURA DE ROLAGEM 2,30 M | E140: CHP | F140: 0,0040000 | G140: 218,21 | H140: 0.87
B141: COMPOSICAO | C141: 96464 | D141: ROLO COMPACTADOR DE PNEUS, ESTATICO, PRESSAO VARIAVEL, POTENCIA 110 HP, PESO SEM/COM LASTRO 10,8/27 T, LARGURA DE ROLAGEM 2,30 M | E141: CHI | F141: 0,0220000 | G141: 95,83 | H141: 2.1
B142: COMPOSICAO | C142: 4748 | D142: PEDRA BRITADA OU BICA CORRIDA, NAO CLASSIFICADA (POSTO PEDREIRA/FORNECEDOR, SEM FRETE) | E142: M3 | F142: 1,0000000 | G142: 97.5 | H142: 97.5
B143: INSUMO | C143: ANP | D143: EMULSÃO ASFÁLTICA PARA IMPRIMAÇÃO (EAI) | E143: T | F143: =1.3/0.2/1000 -> 0.0065 | G143: =2.20561*1.2195122*1000 -> 2689.768303 | H143: 17.48
H144: 0
B145: PRODUÇÃO DA EQUIPE | E145: 1 | F145: CUSTO | H145: =SUM(H133:H144) -> 127.45
B146: TOTAL | H146: =H145/E145 -> 127.45 | I146: OK
B147: BDI % | H147: =1+$M$1 -> 1.2355
B148: TOTAL DO SERVIÇO - R$ | H148: =ROUND(H146*H147,2) -> 157.46
A150: 11 | B150: CODEVASF | E150: COMPOSIÇÃO DE PREÇO UNITÁRIO | I150: =H165 -> 1.01 | J150: =H167 -> 1.25
B151: OBRA: | C151: =$C$2 -> PAVIMENTAÇÃO ASFÁLTICA EM CBUQ - RECAPEAMENTO - AV. OLINDO MIRANDA - ALMENARA / MG | G151: DATA: | H151: =$H$2 -> SETEMBRO / 2023
B152: SERVIÇO: | C152: =VLOOKUP(A150,ORÇAMENTO!$A$10:$I$27,3) -> PINTURA DE LIGAÇÃO COM EMULSÃO ASFÁLTICA RR-1C | E152: SINAPI | F152: =VLOOKUP(A150,ORÇAMENTO!$A$10:$I$27,4) -> 96402 | G152: UNIDADE: | H152: M2
B154: TIPO ITEM | C154: CODIGO ITEM | D154: DESCRIÇÃO ITEM | E154: UNIDADE ITEM | F154: COEFICIENTE | G154: PRECO UNITARIO | H154: CUSTO TOTAL
B155: COMPOSICAO | C155: 5839 | D155: VASSOURA MECÂNICA REBOCÁVEL COM ESCOVA CILÍNDRICA, LARGURA ÚTIL DE VARRIMENTO DE 2,44 M | E155: CHP | F155: 0,0020000 | G155: 10.3 | H155: =ROUNDDOWN(F155*G155,2) -> 0.02
B156: COMPOSICAO | C156: 5841 | D156: VASSOURA MECÂNICA REBOCÁVEL COM ESCOVA CILÍNDRICA, LARGURA ÚTIL DE VARRIMENTO DE 2,44 M | E156: CHI | F156: 0,0040000 | G156: 5.18 | H156: 0.02
B157: INSUMO | C157: 41903 | D157: EMULSAO ASFALTICA CATIONICA RR-1C PARA USO EM PAVIMENTACAO ASFALTICA (FORNECIMENTO COM BDI DIFERENCIADO) | E157: KG | F157: 0,4500000 | H157: 0
B158: COMPOSICAO | C158: 83362 | D158: ESPARGIDOR DE ASFALTO PRESSURIZADO, TANQUE 6 M3 COM ISOLAÇÃO TÉRMICA, AQUECIDO COM 2 MAÇARICOS, COM BARRA ESPARGIDORA 3,60 M, MONTADO SOBRE CAMINHÃO TOCO, PBT 14.300 KG, POTÊNCIA 185 CV | E158: CHP | F158: 0,0004000 | G158: 256.34 | H158: 0.1
B159: COMPOSICAO | C159: 88316 | D159: SERVENTE COM ENCARGOS COMPLEMENTARES | E159: H | F159: 0,0055000 | G159: 19.76 | H159: 0.1
B160: COMPOSICAO | C160: 89035 | D160: TRATOR DE PNEUS, POTÊNCIA 85 CV, TRAÇÃO 4X4, PESO COM LASTRO DE 4.675 KG | E160: CHP | F160: 0,0017000 | G160: 135.08 | H160: 0.22
B161: COMPOSICAO | C161: 89036 | D161: TRATOR DE PNEUS, POTÊNCIA 85 CV, TRAÇÃO 4X4, PESO COM LASTRO DE 4.675 KG | E161: CHI | F161: 0,0038000 | G161: 56.48 | H161: 0.21
B162: COMPOSICAO | C162: 91486 | D162: ESPARGIDOR DE ASFALTO PRESSURIZADO, TANQUE 6 M3 COM ISOLAÇÃO TÉRMICA, AQUECIDO COM 2 MAÇARICOS, COM BARRA ESPARGIDORA 3,60 M, MONTADO SOBRE CAMINHÃO TOCO, PBT 14.300 KG, POTÊNCIA 185 CV | E162: CHI | F162: 0,0051000 | G162: 68.43 | H162: 0.34
H163: 0
B164: PRODUÇÃO DA EQUIPE | E164: 1 | F164: CUSTO | H164: =SUM(H155:H163) -> 1.01
B165: TOTAL | H165: =H164/E164 -> 1.01 | I165: OK
B166: BDI % | H166: =1+$M$1 -> 1.2355
B167: TOTAL DO SERVIÇO - R$ | H167: =ROUND(H165*H166,2) -> 1.25
A169: 12 | B169: CODEVASF | E169: COMPOSIÇÃO DE PREÇO UNITÁRIO | I169: =H187 -> 129.6 | J169: =H189 -> 160.12
B170: OBRA: | C170: =$C$2 -> PAVIMENTAÇÃO ASFÁLTICA EM CBUQ - RECAPEAMENTO - AV. OLINDO MIRANDA - ALMENARA / MG | G170: DATA: | H170: =$H$2 -> SETEMBRO / 2023
B171: SERVIÇO: | C171: =VLOOKUP(A169,ORÇAMENTO!$A$10:$I$27,3) -> EXECUÇÃO DE PAVIMENTO COM APLICAÇÃO DE CONCRETO ASFÁLTICO USINADO A QUENTE (CBUQ), CAMADA DE ROLAMENTO - EXCLUSIVE TRANSPORTE | E171: SINAPI | F171: =VLOOKUP(A169,ORÇAMENTO!$A$10:$I$27,4) -> 95995 | G171: UNIDADE: | H171: =VLOOKUP(A169,ORÇAMENTO!$A$10:$I$27,5) -> M3
B173: TIPO ITEM | C173: CODIGO ITEM | D173: DESCRIÇÃO ITEM | E173: UNIDADE ITEM | F173: COEFICIENTE | G173: PRECO UNITARIO | H173: CUSTO TOTAL
B174: INSUMO | C174: 1518 | D174: CONCRETO BETUMINOSO USINADO A QUENTE (CBUQ) PARA PAVIMENTACAO ASFALTICA, PADRAO DNIT, FAIXA C, COM CAP 50/70 - AQUISICAO POSTO USINA (FORNECIMENTO COM BDI DIFERENCIADO) | E174: T | F174: 2,5548000 | H174: =ROUNDDOWN(F174*G174,2) -> 0
B175: COMPOSICAO | C175: 5835 | D175: VIBROACABADORA DE ASFALTO SOBRE ESTEIRAS, LARGURA DE PAVIMENTAÇÃO 1,90 M A 5,30 M, POTÊNCIA 105 HP CAPACIDADE 450 T/H | E175: CHP | F175: 0,0464000 | G175: 396,75 | H175: 18.4
B176: COMPOSICAO | C176: 5837 | D176: VIBROACABADORA DE ASFALTO SOBRE ESTEIRAS, LARGURA DE PAVIMENTAÇÃO 1,90 M A 5,30 M, POTÊNCIA 105 HP CAPACIDADE 450 T/H | E176: CHI | F176: 0,0949000 | G176: 165,12 | H176: 15.66
B177: COMPOSICAO | C177: 88314 | D177: RASTELEIRO COM ENCARGOS COMPLEMENTARES | E177: H | F177: 1,1301000 | G177: 26,52 | H177: 29.97
B178: COMPOSICAO | C178: 91386 | D178: CAMINHÃO BASCULANTE 10 M3, TRUCADO CABINE SIMPLES, PESO BRUTO TOTAL 23.000 KG, CARGA ÚTIL MÁXIMA 15.935 KG, DISTÂNCIA ENTRE EIXOS 4,80 M, POTÊNCIA 230 CV INCLUSIVE CAÇAMBA METÁLICA | E178: CHP | F178: 0,0464000 | G178: 252,13 | H178: 11.69
B179: COMPOSICAO | C179: 95631 | D179: ROLO COMPACTADOR VIBRATORIO TANDEM, ACO LISO, POTENCIA 125 HP, PESO SEM/COM LASTRO 10,20/11,65 T, LARGURA DE TRABALHO 1,73 M | E179: CHP | F179: 0,0805000 | G179: 228,02 | H179: 18.35
B180: COMPOSICAO | C180: 95632 | D180: ROLO COMPACTADOR VIBRATORIO TANDEM, ACO LISO, POTENCIA 125 HP, PESO SEM/COM LASTRO 10,20/11,65 T, LARGURA DE TRABALHO 1,73 M | E180: CHI | F180: 0,0607000 | G180: 89,32 | H180: 5.42
B181: COMPOSICAO | C181: 96155 | D181: TRATOR DE PNEUS COM POTÊNCIA DE 85 CV, TRAÇÃO 4X4, COM VASSOURA MECÂNICA ACOPLADA | E181: CHI | F181: 0,1071000 | G181: 61,42 | H181: 6.57
B182: COMPOSICAO | C182: 96157 | D182: TRATOR DE PNEUS COM POTÊNCIA DE 85 CV, TRAÇÃO 4X4, COM VASSOURA MECÂNICA ACOPLADA | E182: CHP | F182: 0,0341000 | G182: 144,29 | H182: 4.92
B183: COMPOSICAO | C183: 96463 | D183: ROLO COMPACTADOR DE PNEUS, ESTATICO, PRESSAO VARIAVEL, POTENCIA 110 HP, PESO SEM/COM LASTRO 10,8/27 T, LARGURA DE ROLAGEM 2,30 M | E183: CHP | F183: 0,0419000 | G183: 218,21 | H183: 9.14
B184: COMPOSICAO | C184: 96464 | D184: ROLO COMPACTADOR DE PNEUS, ESTATICO, PRESSAO VARIAVEL, POTENCIA 110 HP, PESO SEM/COM LASTRO 10,8/27 T, LARGURA DE ROLAGEM 2,30 M | E184: CHI | F184: 0,0990000 | G184: 95,83 | H184: 9.48
H185: 0
B186: PRODUÇÃO DA EQUIPE | E186: 1 | F186: CUSTO | H186: =SUM(H174:H185) -> 129.6
B187: TOTAL | H187: =H186/E186 -> 129.6 | I187: OK
B188: BDI % | H188: =1+$M$1 -> 1.2355
B189: TOTAL DO SERVIÇO - R$ | H189: =ROUND(H187*H188,2) -> 160.12
A191: 13 | B191: CODEVASF | E191: COMPOSIÇÃO DE PREÇO UNITÁRIO | I191: =H200 -> 0.73 | J191: =H202 -> 0.9
B192: OBRA: | C192: =$C$2 -> PAVIMENTAÇÃO ASFÁLTICA EM CBUQ - RECAPEAMENTO - AV. OLINDO MIRANDA - ALMENARA / MG | G192: DATA: | H192: =$H$2 -> SETEMBRO / 2023
B193: SERVIÇO: | C193: =VLOOKUP(A191,ORÇAMENTO!$A$10:$I$27,3) -> TRANSPORTE COM CAMINHÃO BASCULANTE, EM VIA URBANA PAVIMENTADA | E193: SINAPI | F193: =VLOOKUP(A191,ORÇAMENTO!$A$10:$I$27,4) -> 95427 | G193: UNIDADE: | H193: =VLOOKUP(A191,ORÇAMENTO!$A$10:$I$27,5) -> M3XKM
B195: TIPO ITEM | C195: CODIGO ITEM | D195: DESCRIÇÃO ITEM | E195: UNIDADE ITEM | F195: COEFICIENTE | G195: PRECO UNITARIO | H195: CUSTO TOTAL
B196: COMPOSICAO | C196: 89883 | D196: CAMINHÃO BASCULANTE 18 M3, COM CAVALO MECÂNICO DE CAPACIDADE MÁXIMA DE TRAÇÃO COMBINADO DE 45000 KG, POTÊNCIA 330 CV, INCLUSIVE SEMIREBOQUE COM CAÇAMBA METÁLICA | E196: CHP | F196: 0,0019000 | G196: 348.45 | H196: =ROUNDDOWN(F196*G196,2) -> 0.66
B197: COMPOSICAO | C197: 89884 | D197: CAMINHÃO BASCULANTE 18 M3, COM CAVALO MECÂNICO DE CAPACIDADE MÁXIMA DE TRAÇÃO COMBINADO DE 45000 KG, POTÊNCIA 330 CV, INCLUSIVE SEMIREBOQUE COM CAÇAMBA METÁLICA | E197: CHI | F197: 0,0008000 | G197: 93.65 | H197: =ROUNDDOWN(F197*G197,2) -> 0.07
H198: =ROUNDDOWN(F198*G198,2) -> 0
B199: PRODUÇÃO DA EQUIPE | E199: 1 | F199: CUSTO | H199: =SUM(H196:H198) -> 0.73
B200: TOTAL | H200: =H199/E199 -> 0.73 | I200: OK
B201: BDI % | H201: =1+$M$1 -> 1.2355
B202: TOTAL DO SERVIÇO - R$ | H202: =ROUND(H200*H201,2) -> 0.9
A204: 15 | B204: CODEVASF | E204: COMPOSIÇÃO DE PREÇO UNITÁRIO | I204: =H213 -> 0.45 | J204: =H215 -> 0.52
B205: OBRA: | C205: =$C$2 -> PAVIMENTAÇÃO ASFÁLTICA EM CBUQ - RECAPEAMENTO - AV. OLINDO MIRANDA - ALMENARA / MG | G205: DATA: | H205: =$H$2 -> SETEMBRO / 2023
B206: SERVIÇO: | C206: =VLOOKUP(A204,ORÇAMENTO!$A$10:$I$27,3) -> TRANSPORTE DE MASSA ASFÁLTICA COM CAMINHÃO BASCULANTE, EM VIA URBANA PAVIMENTADA (BDI DIFERENCIADO) | E206: SINAPI | F206: =VLOOKUP(A204,ORÇAMENTO!$A$10:$I$27,4) -> 95430 | G206: UNIDADE: | H206: =VLOOKUP(A204,ORÇAMENTO!$A$10:$I$27,5) -> TXKM
B208: TIPO ITEM | C208: CODIGO ITEM | D208: DESCRIÇÃO ITEM | E208: UNIDADE ITEM | F208: COEFICIENTE | G208: PRECO UNITARIO | H208: CUSTO TOTAL
B209: COMPOSICAO | C209: 89883 | D209: CAMINHÃO BASCULANTE 18 M3, COM CAVALO MECÂNICO DE CAPACIDADE MÁXIMA DE TRAÇÃO COMBINADO DE 45000 KG, POTÊNCIA 330 CV, INCLUSIVE SEMIREBOQUE COM CAÇAMBA METÁLICA | E209: CHP | F209: 0,0012000 | G209: 348.45 | H209: =ROUNDDOWN(F209*G209,2) -> 0.41
B210: COMPOSICAO | C210: 89884 | D210: CAMINHÃO BASCULANTE 18 M3, COM CAVALO MECÂNICO DE CAPACIDADE MÁXIMA DE TRAÇÃO COMBINADO DE 45000 KG, POTÊNCIA 330 CV, INCLUSIVE SEMIREBOQUE COM CAÇAMBA METÁLICA | E210: CHI | F210: 0,0005000 | G210: 93.65 | H210: =ROUNDDOWN(F210*G210,2) -> 0.04
H211: =ROUNDDOWN(F211*G211,2) -> 0
B212: PRODUÇÃO DA EQUIPE | E212: 1 | F212: CUSTO | H212: =SUM(H209:H211) -> 0.45
B213: TOTAL | H213: =H212/E212 -> 0.45 | I213: OK
B214: BDI % | H214: =1+$M$2 -> 1.15
B215: TOTAL DO SERVIÇO - R$ | H215: =ROUND(H213*H214,2) -> 0.52
A217: 16 | B217: CODEVASF | E217: COMPOSIÇÃO DE PREÇO UNITÁRIO | I217: =H225 -> 0.52 | J217: =H227 -> 0.6
B218: OBRA: | C218: =$C$2 -> PAVIMENTAÇÃO ASFÁLTICA EM CBUQ - RECAPEAMENTO - AV. OLINDO MIRANDA - ALMENARA / MG | G218: DATA: | H218: =$H$2 -> SETEMBRO / 2023
B219: SERVIÇO: | C219: =VLOOKUP(A217,ORÇAMENTO!$A$10:$I$27,3) -> TRANSPORTE COM CAMINHÃO TANQUE DE TRANSPORTE DE MATERIAL ASFÁLTICO DE 30000 L, EM VIA URBANA PAVIMENTADA (BDI DIFERENCIADO) | E219: SINAPI | F219: =VLOOKUP(A217,ORÇAMENTO!$A$10:$I$27,4) -> 102331 | G219: UNIDADE: | H219: =VLOOKUP(A217,ORÇAMENTO!$A$10:$I$27,5) -> TXKM
B221: TIPO ITEM | C221: CODIGO ITEM | D221: DESCRIÇÃO ITEM | E221: UNIDADE ITEM | F221: COEFICIENTE | G221: PRECO UNITARIO | H221: CUSTO TOTAL
B222: COMPOSICAO | C222: 91645 | D222: CAMINHÃO DE TRANSPORTE DE MATERIAL ASFÁLTICO 30.000 L, COM CAVALO MECÂNICO DE CAPACIDADE MÁXIMA DE TRAÇÃO COMBINADO DE 66.000 KG, POTÊNCIA 360 CV, INCLUSIVE TANQUE DE ASFALTO COM SERPENTINA | E222: CHP | F222: 0,0011000 | G222: 442,21 | H222: =ROUNDDOWN(F222*G222,2) -> 0.48
B223: COMPOSICAO | C223: 91646 | D223: CAMINHÃO DE TRANSPORTE DE MATERIAL ASFÁLTICO 30.000 L, COM CAVALO MECÂNICO DE CAPACIDADE MÁXIMA DE TRAÇÃO COMBINADO DE 66.000 KG, POTÊNCIA 360 CV, INCLUSIVE TANQUE DE ASFALTO COM SERPENTINA | E223: CHI | F223: 0,0005000 | G223: 98,91 | H223: =ROUNDDOWN(F223*G223,2) -> 0.04
B224: PRODUÇÃO DA EQUIPE | E224: 1 | F224: CUSTO | H224: =SUM(H222:H223) -> 0.52
B225: TOTAL | H225: =H224/E224 -> 0.52 | I225: OK
B226: BDI % | H226: =1+$M$2 -> 1.15
B227: TOTAL DO SERVIÇO - R$ | H227: =ROUND(H225*H226,2) -> 0.6
A229: 19 | B229: CODEVASF | E229: COMPOSIÇÃO DE PREÇO UNITÁRIO | I229: =H240 -> 19.49 | J229: =H242 -> 24.08
... 90 more rows

Sheet BDI SERV
B1: DETALHAMENTO DO BDI - SERVIÇOS
B4: Item | C4: Descrição dos Serviços | D4: % | E4: %
D5: PV | E5: CD
B7: 1 | C7: ADMINISTRAÇÃO CENTRAL | E7: 4.01
B8: 1.1 | C8: ESCRITÓRIO CENTRAL
B9: 1.2 | C9: VIAGENS
B10: 1.3 | C10: OUTROS
B12: 2 | C12: IMPOSTOS E TAXAS | D12: =SUM(D13:D16) -> 7.65 | E12: =SUM(E13:E16) -> 9.57
B13: 2.1 | C13: ISS (*) | D13: =5*0.8 -> 4 | E13: =ROUND(D13*1.2515,2) -> 5.01
B14: 2.2 | C14: PIS | D14: 0.65 | E14: =ROUND(D14*1.2515,2) -> 0.81
B15: 2.3 | C15: Cofins | D15: 3 | E15: =ROUND(D15*1.2515,2) -> 3.75
B16: 2.4 | C16: CONTRIBUIÇÃO PREVIDENCIÁRIA SOBRE A RENDA BRUTA | D16: 0 | E16: =ROUND(D16*1.2515,2) -> 0
B18: 3 | C18: TAXA DE RISCO | E18: =SUM(E19:E22) -> 0.96
B19: 3.1 | C19: SEGURO | E19: 0.2
B20: 3.2 | C20: RISCO | E20: 0.56
B21: 3.3 | C21: GARANTIA | E21: 0.2
B23: 4 | C23: DESPESAS FINANCEIRAS | E23: 1.11
B25: 5 | C25: LUCRO | E25: 7.5
C27: BDI - CALCULADO | E27: =ROUND((((1+(E7+E18)/100)*(1+E23/100)*(1+E25/100)/(1-D12/100)-1)*100),2) -> 23.55
A29: BDI = ((1+((AC+S+R+G)/100))x(1+DF/100)x(1+L/100)/(1-I/100)-1)*100
B31: BDI (CALCULADO): | D31: =ROUND((((1+((E7+E18)/100))*(1+E23/100)*(1+E25/100))/(1-D12/100)-1)*100,2) -> 23.55 | E31: %
A33: (*) ISS CONFORME LEI COMPLEMENTAR Nº 1.830/2021 - ART. 324 § 2º INCISO I - NÃO PREVISTO DEDUÇÃO DE MATERIAIS / QUANTIDADE IRRISÓRIA (MATERIAIS ASFÁLTICOS COM BDI DIFERENCIADO)
A37: BDI EM CONFORMIDADE COM OS ACÓRDÃOS Nº 2369/2011 e ACÓRDÃO Nº 2.622/2013 - TCU - PLENÁRIO

Sheet BDI FORN
B1: DETALHAMENTO DO BDI - FORNECIMENTO (MATERIAL ASFÁLTICO)
B4: Item | C4: Descrição dos Serviços | D4: % | E4: %
D5: PV | E5: CD
B7: 1 | C7: ADMINISTRAÇÃO CENTRAL | E7: 3.72
B8: 1.1 | C8: ESCRITÓRIO CENTRAL
B9: 1.2 | C9: VIAGENS
B10: 1.3 | C10: OUTROS
B12: 2 | C12: IMPOSTOS E TAXAS | D12: =SUM(D13:D16) -> 3.65 | E12: =SUM(E13:E16) -> 4.56
B13: 2.1 | C13: ISS (*) | E13: =ROUND(D13*1.2515,2) -> 0
B14: 2.2 | C14: PIS | D14: 0.65 | E14: =ROUND(D14*1.2515,2) -> 0.81
B15: 2.3 | C15: Cofins | D15: 3 | E15: =ROUND(D15*1.2515,2) -> 3.75
B16: 2.4 | C16: CONTRIBUIÇÃO PREVIDENCIÁRIA SOBRE A RENDA BRUTA | D16: 0 | E16: =ROUND(D16*1.2515,2) -> 0
B18: 3 | C18: TAXA DE RISCO | E18: =SUM(E19:E22) -> 0.82
B19: 3.1 | C19: SEGURO | E19: 0.16
B20: 3.2 | C20: RISCO | E20: 0.5
B21: 3.3 | C21: GARANTIA | E21: 0.16
B23: 4 | C23: DESPESAS FINANCEIRAS | E23: 0.94
B25: 5 | C25: LUCRO | E25: 5
C27: BDI - CALCULADO | E27: =ROUND((((1+(E7+E18)/100)*(1+E23/100)*(1+E25/100)/(1-D12/100)-1)*100),2) -> 15
A29: BDI = ((1+((AC+S+R+G)/100))x(1+DF/100)x(1+L/100)/(1-I/100)-1)*100
B31: BDI (CALCULADO): | D31: =ROUND((((1+((E7+E18)/100))*(1+E23/100)*(1+E25/100))/(1-D12/100)-1)*100,2) -> 15 | E31: %
A37: BDI EM CONFORMIDADE COM OS ACÓRDÃOS Nº 2369/2011 e ACÓRDÃO Nº 2.622/2013 - TCU - PLENÁRIO

Sheet CRONOGRAMA
B1: CRONOGRAMA FÍSICO-FINANCEIRO
B2: OBRA: | C2: =ORÇAMENTO!C5 -> PAVIMENTAÇÃO ASFÁLTICA EM CBUQ - RECAPEAMENTO - AV. OLINDO MIRANDA - ALMENARA / MG | F2: VALOR: | G2: =ORÇAMENTO!I36 -> 3080292.45
F3: PRAZO: | G3: 120 DIAS
B5: ITEM | C5: ETAPAS/DESCRIÇAO | D5: FISICO/ FINANCEIRO | E5: TOTAL ETAPAS | F5: MÊS 1 | G5: MÊS 2 | H5: MÊS 3 | I5: MÊS 4 | J5: TOTAL
A6: A | B6: =VLOOKUP(A6,ORÇAMENTO!$A$9:$I$36,2) -> 1 | C6: =VLOOKUP(A6,ORÇAMENTO!$A$9:$I$36,3) -> SERVIÇOS PRELIMINARES | D6: FISICO | E6: =ROUND(E7/$G$2,4) -> 0.0343 | F6: 0.25 | G6: 0.35 | H6: 0.3 | I6: 0.1 | J6: =SUM(F6:I6) -> 1
D7: FINANCEIRO | E7: =ORÇAMENTO!I9 -> 105769.3 | F7: =ROUND($E$7*F6,2) -> 26442.33 | G7: =ROUND($E$7*G6,2) -> 37019.26 | H7: =ROUND($E$7*H6,2) -> 31730.79 | I7: =ROUND($E$7*I6,2) -> 10576.93 | J7: =SUM(F7:I7) -> 105769.31
A8: B | B8: =VLOOKUP(A8,ORÇAMENTO!$A$9:$I$36,2) -> 2 | C8: =VLOOKUP(A8,ORÇAMENTO!$A$9:$I$36,3) -> PAVIMENTAÇÃO | D8: FISICO | E8: =ROUND(E9/$G$2,4) -> 0.1003 | F8: 0.35 | G8: 0.4 | H8: 0.25 | J8: =SUM(F8:I8) -> 1
D9: FINANCEIRO | E9: =ORÇAMENTO!I14 -> 309083.2 | F9: =ROUND($E$9*F8,2) -> 108179.12 | G9: =ROUND($E$9*G8,2) -> 123633.28 | H9: =ROUND($E$9*H8,2) -> 77270.8 | I9: =ROUND($E$9*I8,2) -> 0 | J9: =SUM(F9:I9) -> 309083.2
A10: C | B10: =VLOOKUP(A10,ORÇAMENTO!$A$9:$I$36,2) -> 3 | C10: =VLOOKUP(A10,ORÇAMENTO!$A$9:$I$36,3) -> TRANSPORTE DE MATERIAIS | D10: FISICO | E10: =ROUND(E11/$G$2,4) -> 0.0019 | F10: 0.7 | G10: 0.3 | J10: =SUM(F10:I10) -> 1
D11: FINANCEIRO | E11: =ORÇAMENTO!I22 -> 5850 | F11: =ROUND($E$11*F10,2) -> 4095 | G11: =ROUND($E$11*G10,2) -> 1755 | H11: =ROUND($E$11*H10,2) -> 0 | I11: =ROUND($E$11*I10,2) -> 0 | J11: =SUM(F11:I11)-0.04 -> 5849.96
A12: D | B12: =VLOOKUP(A12,ORÇAMENTO!$A$9:$I$36,2) -> 4 | C12: =VLOOKUP(A12,ORÇAMENTO!$A$9:$I$36,3) -> TRANSPORTE DE MATERIAL ASFÁLTICO (BDI DIFERENCIADO) | D12: FISICO | E12: =ROUND(E13/$G$2,4) -> 0.1328 | F12: 0.35 | G12: 0.4 | H12: 0.25 | J12: =SUM(F12:I12) -> 1
D13: FINANCEIRO | E13: =ORÇAMENTO!I24 -> 409000 | F13: =ROUND($E$13*F12,2) -> 143150 | G13: =ROUND($E$13*G12,2) -> 163600 | H13: =ROUND($E$13*H12,2) -> 102250 | I13: =ROUND($E$13*I12,2) -> 0 | J13: =SUM(F13:I13)-0.02 -> 408999.98
A14: E | B14: =VLOOKUP(A14,ORÇAMENTO!$A$9:$I$36,2) -> 5 | C14: =VLOOKUP(A14,ORÇAMENTO!$A$9:$I$36,3) -> DRENAGEM E OBRAS COMPLEMENTARES | D14: FISICO | E14: =ROUND(E15/$G$2,4) -> 0.1269 | F14: 0 | G14: 0.2 | H14: 0.4 | I14: 0.4 | J14: =SUM(F14:I14) -> 1
D15: FINANCEIRO | E15: =ORÇAMENTO!I27 -> 390947.57 | F15: =ROUND($E$15*F14,2) -> 0 | G15: =ROUND($E$15*G14,2) -> 78189.51 | H15: =ROUND($E$15*H14,2) -> 156379.03 | I15: =ROUND($E$15*I14,2) -> 156379.03 | J15: =SUM(F15:I15)-0.02 -> 390947.55
A16: F | B16: =VLOOKUP(A16,ORÇAMENTO!$A$9:$I$36,2) -> 6 | C16: =VLOOKUP(A16,ORÇAMENTO!$A$9:$I$36,3) -> FORNECIMENTOS - MATERIAL ASFÁLTICO (BDI DIFERENCIADO) | D16: FISICO | E16: =ROUND(E17/$G$2,4) -> 0.6037 | F16: 0.35 | G16: 0.4 | H16: 0.25 | J16: =SUM(F16:I16) -> 1
D17: FINANCEIRO | E17: =ORÇAMENTO!I33 -> 1859642.38 | F17: =ROUND($E$17*F16,2) -> 650874.83 | G17: =ROUND($E$17*G16,2) -> 743856.95 | H17: =ROUND($E$17*H16,2) -> 464910.6 | I17: =ROUND($E$17*I16,2) -> 0 | J17: =SUM(F17:I17)-0.02 -> 1859642.36
B18: TOTAL | D18: FISICO | E18: =SUM(F18:I18) -> 1.000000003 | F18: =F19/$E$19 -> 0.3028093258 | G18: =G19/$E$19 -> 0.372709416 | H18: =H19/$E$19 -> 0.2702799275 | I18: =I19/$E$19 -> 0.05420133403 | J18: =SUM(F18:I18) -> 1.000000003
D19: FINANCEIRO | E19: =E11+E9+E7+E13+E17+E15 -> 3080292.45 | F19: =F11+F9+F7+F13+F17+F15 -> 932741.28 | G19: =G11+G9+G7+G13+G17+G15 -> 1148054 | H19: =H11+H9+H7+H13+H17+H15 -> 832541.22 | I19: =I11+I9+I7+I13+I17+I15 -> 166955.96 | J19: =SUM(F19:I19)-0.01 -> 3080292.45
B21: OBSERVAÇÕES:
